Cogmind - Beta 13 @@@ ROGUE MODE // 2024.04.09 @ 17:18:51 Player: FiveBalesOfHay Result: Destroyed by G-34 Mercenary with Small Laser Performance ------------- Evolutions (0) 0 Regions Visited (1) 200 Robots Destroyed (4) 20 Value Destroyed (143) 143 Prototype IDs (0) 0 Alien Tech Used (0) 0 Bonus (0) 0 TOTAL SCORE: 363 Bonus ------- None Cogmind --------- Core Integrity 0/250 Matter 153/300 Energy 51/100 System Corruption 0% Temperature Cool (52) Movement Rolling (80) Location -10/Materials Parts ------- > --- POWER (1) -------- (None) > --- PROPULSION (2) --- Wheel Wheel > --- UTILITY (2) ------ Small Storage Unit > --- WEAPON (2) ------- EM Pulse Gun > --- INVENTORY (8) ---- Light Ion Engine Light Ion Engine Peak State ------------ > --- POWER ------------ Ion Engine > --- PROPULSION ------- Wheel Wheel > --- UTILITY ---------- Heat Sink Small Storage Unit > --- WEAPON ----------- EM Pulse Gun Assault Rifle > --- INVENTORY -------- Light Ion Engine Light Ion Engine Wheel EM Pulse Gun EM Pulse Gun [Rating: 7] Favorites ----------- Power Ion Engine Engine Ion Engine Propulsion Wheel Wheel Wheel Utility Small Storage Unit Device Heat Sink Storage Small Storage Unit Weapon EM Pulse Gun Energy Gun EM Pulse Gun Ballistic Gun Assault Rifle Build | -11 -10 ------- Run | Yrd Mat Slots Evolved . | . . Power . | . . Propulsion . | . . Utility . | . . Weapon . | . . Parts Attached 11 | 6 5 Power 1 | 1 . Engine 1 | 1 . Core . | . . Reactor . | . . Propulsion 3 | 2 1 Treads . | . . Leg . | . . Wheel 3 | 2 1 Hover . | . . Flight . | . . Utility 2 | 1 1 Device 1 | . 1 Storage 1 | 1 . Processor . | . . Hackware . | . . Protection . | . . Artifact . | . . Weapon 5 | 2 3 Energy Gun 4 | 2 2 Energy Cannon . | . . Ballistic Gun 1 | . 1 Ballistic Cannon . | . . Launcher . | . . Special Weapon . | . . Impact Weapon . | . . Slashing Weapon . | . . Piercing Weapon . | . . Special Melee Weapon . | . . Unidentified Prototypes . | . . Parts Lost 6 | . 6 Power 1 | . 1 Propulsion 1 | . 1 Utility 1 | . 1 Weapon 3 | . 3 Highest Loss Streak 6 | . 6 To Critical Strikes . | . . Average Slot Usage (%) 86 | . 86 Engine 12 | . 12 Wheel 25 | . 25 Device 7 | . 7 Storage 14 | . 14 Energy Gun 18 | . 18 Ballistic Gun 6 | . 6 Naked Turns . | . . Heaviest Build 15 | 14 15 Greatest Support 20 | 20 20 Greatest Overweight (x) 1 | . 1 Average Overweight (x) . | . . Largest Inventory Capacity 8 | 8 8 Average Capacity 7 | 7 8 Most Carried 5 | 2 5 Average Carried 3 | 1 3 Final Capacity 8 | 8 8 Final Carried 2 | 2 2 Class Distribution -------------------- 100% | Mutant Dominant Class ---------------- Mutant | -10/Materials Resources | -11 -10 ----------- Run | Yrd Mat Matter Collected 136 | 136 . Remotely . | . . Salvage Created 111 | . 111 Parts 8 | . 8 Haulers Intercepted . | . . Recyclers Shooed . | . . Parts Field Recycled . | . . Retrieved Matter . | . . Parts Self-Destructed . | . . Prevented . | . . Kills | -11 -10 ------- Run | Yrd Mat Combat Hostiles Destroyed 3 | . 3 AOE 3 | . 3 Classes Destroyed 2 | . 2 Worker 1 | . 1 Grunt 3 | . 3 Best Kill Streak 2 | . 2 Combat Bots Only 2 | . 2 Max Kills in Single Turn 2 | . 2 Gunslinging . | . . Exploded 2 | . 2 Melee . | . . Uniques/NPCs Destroyed . | . . Combat | -11 -10 -------- Run | Yrd Mat Hostile Shots Fired 46 | . 46 Missed 13 | . 13 Damage Taken 703 | . 703 Core 253 | . 253 Absorbed by Shields . | . . Core Remaining (%) 100 | 100 . Volleys Fired 10 | . 10 Largest 2 | . 2 Hottest 80 | . 80 Shots Fired 16 | . 16 Gun 16 | . 16 Cannon . | . . Launcher . | . . Special . | . . Kinetic 1 | . 1 Thermal . | . . Explosive . | . . Electromagnetic 15 | . 15 Robot Hit Streak 6 | . 6 Robot Miss Streak 2 | . 2 Penetration Max . | . . Secondary Targets . | . . Shots Hit Robots 12 | . 12 Core Hits 7 | . 7 Critical Kills . | . . Critical Parts Destroyed . | . . Critical Strikes 1 | . 1 Corrupt 1 | . 1 Melee Attacks . | . . Impact . | . . Slashing . | . . Piercing . | . . Sneak Attacks . | . . Combat Hostiles . | . . Follow-up Attacks . | . . Damage Inflicted 536 | . 536 Guns 182 | . 182 Cannons . | . . Explosions 354 | . 354 Melee . | . . Ramming . | . . Kinetic . | . . Thermal 354 | . 354 Explosive . | . . Electromagnetic 182 | . 182 Impact . | . . Slashing . | . . Piercing . | . . Highest Corruption . | . . Average Corruption . | . . Corruption Purged . | . . Corruption Blocked . | . . Overload Shots . | . . Overflow Damage 81 | . 81 Projectiles . | . . Explosions 81 | . 81 Melee . | . . Knockbacks . | . . Impact . | . . Kinetic . | . . Secondary . | . . Self-Inflicted Damage 294 | . 294 Shots 5 | . 5 Rammed . | . . Targets Rammed . | . . Kicked . | . . Crushed . | . . Highest Temperature 46 | . 46 Average Temperature 25 | . 25 Received Heat Transfer 231 | . 231 Siege Activations . | . . Robots Corrupted . | . . Combat Hostiles . | . . Parts Fried . | . . Impact Corruptions . | . . Robots Melted . | . . Combat Hostiles . | . . Parts Melted 1 | . 1 Heat Transferred 400 | . 400 Parts Sabotaged . | . . Parts Stolen . | . . Parts Stripped . | . . Power Chain Reactions 2 | . 2 Alert | -11 -10 ------- Run | Yrd Mat Peak Influence 207 | . 207 Initial . | . . Average 43 | . 56 Maximum Alert Level 1 | . 1 Low Security (%) 98 | 100 98 Level 1 1 | . 1 Level 2 . | . . Level 3 . | . . Level 4 . | . . Level 5 . | . . High Security . | . . Max Security . | . . Squads Dispatched 2 | . 2 Investigation 1 | . 1 Extermination . | . . Reinforcement 1 | . 1 Assault . | . . Garrison . | . . Intercept . | . . Searches Triggered . | . . Construction Impeded . | . . Haulers Reinforced . | . . Active Scanning Responses . | . . Cargo Convoy Interrupts . | . . Stealth | -11 -10 --------- Run | Yrd Mat Distress Signals . | . . Communications Jammed . | . . Distress Signals . | . . Times Spotted 11 | . 11 Peak Tracking Total 7 | . 7 Tactical Retreats . | . . Traps | -11 -10 ------- Run | Yrd Mat Traps Triggered 1 | . 1 Indirectly . | . . Trap Hack Attempts . | . . Triggered . | . . Disarmed . | . . Reprogrammed 6 | . 6 Reused . | . . Traps Extracted . | . . Installed . | . . Triggered . | . . Machines | -11 -10 ---------- Run | Yrd Mat Machines Disabled 4 | . 4 Max in Single Turn 3 | . 3 Machines Repaired . | . . Machines Dismantled . | . . Machines Sabotaged . | . . Overloaded Fab Kills . | . . Hacking | -11 -10 --------- Run | Yrd Mat Machines Accessed 1 | . 1 Terminals 1 | . 1 Fabricators . | . . Repair Stations . | . . Recycling Units . | . . Scanalyzers . | . . Garrison Access . | . . Total Hacks 7 | . 7 Successful 5 | . 5 Failed 2 | . 2 Catastrophic . | . . Database Lockouts . | . . Manual 3 | . 3 Terminals 7 | . 7 Fabricators . | . . Repair Stations . | . . Recycling Units . | . . Scanalyzers . | . . Garrison Access . | . . Terminal Hacks 4 | . 4 Branch Access Points 1 | . 1 Reprogram Traps 1 | . 1 Recall Investigation 1 | . 1 Zone Layout 1 | . 1 Fabricator Hacks . | . . Repair Station Hacks . | . . Recycling Unit Hacks . | . . Scanalyzer . | . . Garrison Access Hacks . | . . Unauthorized Hacks 1 | . 1 Terminals 1 | . 1 Track 1 | . 1 Fabricators . | . . Repair Stations . | . . Recycling Units . | . . Scanalyzers . | . . Garrison Access . | . . Data Cores Recovered . | . . Used . | . . Hacking Detections 1 | . 1 Full Trace Events . | . . Feedback Events . | . . Feedback Blocked . | . . Robot Schematics Acquired . | . . Robots Built . | . . Authchips . | . . Time . | . . Total Robot Build Rating . | . . Part Schematics Acquired . | . . Parts Built . | . . Authchips . | . . Time . | . . Total Part Build Rating . | . . Parts Repaired . | . . Time . | . . Parts Recycled . | . . Recycled Matter . | . . Retrieved Matter . | . . Retrieved Components . | . . Parts Scanalyzed . | . . Part Schematics Acquired . | . . Parts Damaged . | . . Bothacking | -11 -10 ------------ Run | Yrd Mat Used RIF Installer . | . . Robots Hacked . | . . Non-combat . | . . Combat . | . . Robot Hacks Applied . | . . Relay Couplers Released . | . . Fabnet Peak Effective % . | . . Robots Rewired . | . . Allies Hacked . | . . Hacks Repelled . | . . Allies | -11 -10 -------- Run | Yrd Mat Total Allies . | . . Largest Group . | . . Highest-Rated Group . | . . Highest-Rated Ally . | . . Total Orders . | . . Ally Attacks . | . . Total Damage . | . . Kills . | . . Allies Corrupted . | . . Allies Melted . | . . Intel | -11 -10 ------- Run | Yrd Mat Robot Analysis Total . | . . Derelict Logs Recovered . | . . Drone Launches . | . . Drone Recoveries . | . . Exploration | -11 -10 ------------- Run | Yrd Mat Turns Passed 173 | 39 134 Spaces Moved 142 | 36 106 Core 1 | 1 . Treads . | . . Legs . | . . Wheels 141 | 35 106 Hover . | . . Flight . | . . Fastest Speed 50 | 50 80 Average Speed 81 | 79 82 Slowest Speed 95 | 80 95 Overloaded Moves . | . . Propulsion Burnouts . | . . Robots Hopped . | . . Cave-ins Triggered . | . . Exploration Rate (%) 12 | 3 21 Regions Visited 1 Branch Regions . Pre-discovered Areas . | . . Known Exits Taken . | . . Unknown Exits Taken 1 | 1 . Scrap Searched . | . . Spaces Dug . | . . Terrain Destroyed 66 | . 66 Melee . | . . Projectile . | . . AOE 66 | . 66 Terrain Rammed . | . . Walls Destroyed . | . . Machines Disabled . | . . Actions | -11 -10 --------- Run | Yrd Mat Total 179 | 43 136 Wait 12 | . 12 Move 141 | 35 106 Hop . | . . Pick Up 5 | 2 3 Fast Attach 7 | 6 1 Attach 3 | . 3 Detach . | . . Swap 1 | . 1 Drop . | . . Fire 10 | . 10 Melee . | . . Ram . | . . Kick . | . . Crush . | . . Escape Stasis . | . . Rewire . | . . Trap . | . . Miscellaneous . | . . Route ------- -11/Scrapyard -10/Materials (discovered 2 exits: [*Mat] / Min) History --------- Turn | Location | Event 17 | -11/Scrapyard | Discovered new exit (range 15) 40 | -11/Scrapyard | Entered Materials 130 | -10/Materials | Discovered new exit (range 14) 141 | -10/Materials | Core integrity fell below 50% 145 | -10/Materials | Identified exit to Mines 165 | -10/Materials | Core integrity fell below 20% 174 | -10/Materials | Destroyed by G-34 Mercenary with Small Laser Last Messages --------------- >>Access(Branch) Found 1 branch access point: (60,63) Mines Map updated. U-05 Engineer builds a Wall. Ion Engine destroyed. U-05 Engineer builds a Wall. Chain reaction triggered in Lgt. Nuclear Core. Terminal disabled. Destroyed Sml. Laser. G-34 Mercenary destroyed. Destroyed Heat Sink. G-34 Mercenary destroyed. EM Pulse Gun destroyed. Destroyed Aluminum Leg. K-01 Serf collects debris. Heat Sink destroyed. K-01 Serf collects debris. G-34 Mercenary heat short circuits Ion Engine. G-47 Trooper misfires. Map ----- +----------------------------------------------------+ | ?# ## #???? ## #?????????????? | | ?# ## """ """ #???????# +?????????????? | | ?# #?? """ """ #??????? #?????????????? | | ?# ## """ """ #???????# #?????????????? | | ?# ## #???????# #?????????????? | | ? ###+########+######### ??????????????? | | # # ##### #????????? | | + # #????????? | | # = ##???????? | | # ##########+ # #???????? | | ## ##???## ######???? | | ?# #???? # #???? | | ?# ????? # """ #???? | | ?# ?????"# """ """ #???? | | ?? ?????"# """ """ #???? | | ??????????"# """ """ #???? | | ?????????? ########## ## ###### #???? | | ??????????"#??????# # ###/#####???? | | ??????????"#??????# """ # #????? | | ??????????"#??????# """ + < #????? | | ?????????? #??????# """ # #????? | | ??????????##??????# #k ###+####????? | | ??????????????????# g= k# ## #????? | | ??????????????????# g*;# ## #????? | | ??????????????????# %gg ;# ##"" #????? | | ??????????????????# g @;# ##"Y #????? | | ??????????????????####;;;;;# ##"" #????? | | ?????????????????????####### ## #????? | | ??????????????????????# #########????? | | ??????????????????????#^ ^ #??#######???? | | ??????????????????????# T #??# ???? | | ??????????????????????#^ ^ #??# """ "???? | | ??????????#### ######## #??# "Y" "???? | | ?????????? #??# "???? | | ?????????? ^ #??# ???? | | ?????????? #??# ???? | | ??????????##########+## ^""" #### ???? | | ??????????#??# # """ ## ???? | | ??????????#??# # """ ########???? | | ????????????????????????????????????????????? | | ????????????????????????????????????????????? | | ????????????????????????????????????????????? | | ????????????????????????????????????????????? | | ????????????????????????????????????????????? | | ????????????????????????????????????????????? | | ????????????????????????????????????????????? | | ????????????????????????????????????????????? | | ????????????????????????????????????????????? | | ????????????????????????????????????????????? | | ????????????????????????????????????????????? | +----------------------------------------------------+ Best States ------------- Heat Dissipation 35 Energy Generation 10 Energy Capacity 250 Matter Stores 176 Matter Capacity 300 Sight Range 16 Terrain Scan Density 10 Evasion (%) 44 Item Schematics ----------------- None Robot Schematics ------------------ None Fabricated ------------ Nothing Alien Tech Used ----------------- None Achievements -------------- None Challenges ------------ None Game ------ Seed CoordinationThiefFlakker Manual? 0 Play Time 00:07:21 Cumulative 16.4 hours Start 2024.04.09 @ 17:09:15 End 2024.04.09 @ 17:18:51 Sessions 1 Manual Loads 0 Difficulty Rogue Special Mode None Game No. 16 Rogue 16 Adventurer 0 Explorer 0 Win Type - Total 0 Types 0/0/0/0/0/0/0/0/0 Lore% 20 Gallery% 18 Achievement% 18 Wizard Run 0 Options --------- Layout 1 ASCII 1 Keyboard 1 Movement Numpad Keybinds 0 Fullscreen 1 Font 24/Smallcaps Map View 50x35 Zoom Use 0% Tactical HUD 0 Map Filters NONE Filters NONE Steam 0 RUN: b612fc61-3af4-4896-b06e-842fa8132d44